{"text_format":"1","workbook":"xlsx","n_sheets":5,"sheets":["الرصيد","ورقة1","المبيعات","المشتريات","الأصناف"],"not_rendered":{"charts":0,"images":0,"macros":1,"external_links":0,"defined_names":8,"comments":0,"pivot_tables":0},"unopened":[],"bounds":{"document_bytes":16777216,"sheet_cells":100000,"rows_first":2000,"rows_last":500,"rows_between":2000,"halvings":0,"cell_chars":16384,"cell_head_chars":4096},"cells_cut":0,"cells_raw":0,"read":"whole","date_system":"1900"}

{"sheet":"الرصيد","index":0,"n_rows":32,"n_cols":14,"rows_kept":32,"cut":false,"hidden":false,"merged":[[0,4,0,8],[2,10,2,12],[3,10,3,12],[4,10,4,12]]}
[null,null,null,null,"الرصــــــــــيد"]
[null,null,null,null,"الكود","الصنف","السعر الافتراضي","الكمية","السعر"]
[null,null,null,null,{"$f":"الأصناف!F3","v":"A1"},{"$f":"IFERROR(VLOOKUP(E3,الأصناف!items,2,FALSE),\"\")","v":"قهوة باردة"},{"$f":"IFERROR(VLOOKUP(E3,sto_1,4,FALSE),\"\")","v":""},{"$f":"SUMIF(المبيعات!$G$3:$G$2012,الرصيد!F3,المبيعات!$H$3:$H$2012)","v":7},{"$f":"IFERROR(SUMIF(المبيعات!$G$3:G$2012,الرصيد!F3,المبيعات!$K$3:$K$2012),\"\")","v":63},null,"مجموع المشتريات ",null,null,{"$f":"المشتريات!$M$5","v":1000}]
[null,null,null,null,{"$f":"الأصناف!F4","v":"A2"},{"$f":"IFERROR(VLOOKUP(E4,الأصناف!items,2,FALSE),\"\")","v":"قهوة حارة"},{"$f":"IFERROR(VLOOKUP(E4,sto_1,4,FALSE),\"\")","v":""},{"$f":"SUMIF(المبيعات!$G$3:$G$2012,الرصيد!F4,المبيعات!$H$3:$H$2012)","v":0},{"$f":"IFERROR(SUMIF(المبيعات!$G$3:G$2012,الرصيد!F4,المبيعات!$K$3:$K$2012),\"\")","v":0},null,"مجموع المبيعات ",null,null,{"$f":"المبيعات!N5","v":63}]
[null,null,null,null,{"$f":"الأصناف!F5","v":"A3"},{"$f":"IFERROR(VLOOKUP(E5,الأصناف!items,2,FALSE),\"\")","v":"كيك"},"",{"$f":"SUMIF(المبيعات!$G$3:$G$2012,الرصيد!F5,المبيعات!$H$3:$H$2012)","v":0},{"$f":"IFERROR(SUMIF(المبيعات!$G$3:G$2012,الرصيد!F5,المبيعات!$K$3:$K$2012),\"\")","v":0},null,"الصافي",null,null,{"$f":"N4-N3","v":-937}]
[null,null,null,null,{"$f":"الأصناف!F6","v":"A4"},{"$f":"IFERROR(VLOOKUP(E6,الأصناف!items,2,FALSE),\"\")","v":"بسكوت"},"",{"$f":"SUMIF(المبيعات!$G$3:$G$2012,الرصيد!F6,المبيعات!$H$3:$H$2012)","v":0},{"$f":"IFERROR(SUMIF(المبيعات!$G$3:G$2012,الرصيد!F6,المبيعات!$K$3:$K$2012),\"\")","v":0}]
[null,null,null,null,{"$f":"الأصناف!F7","v":"A5"},{"$f":"IFERROR(VLOOKUP(E7,الأصناف!items,2,FALSE),\"\")","v":0},"",{"$f":"SUMIF(المبيعات!$G$3:$G$2012,الرصيد!F7,المبيعات!$H$3:$H$2012)","v":0},{"$f":"IFERROR(SUMIF(المبيعات!$G$3:G$2012,الرصيد!F7,المبيعات!$K$3:$K$2012),\"\")","v":0}]
[null,null,null,null,{"$f":"الأصناف!F8","v":"A6"},{"$f":"IFERROR(VLOOKUP(E8,الأصناف!items,2,FALSE),\"\")","v":0},"",{"$f":"SUMIF(المبيعات!$G$3:$G$2012,الرصيد!F8,المبيعات!$H$3:$H$2012)","v":0},{"$f":"IFERROR(SUMIF(المبيعات!$G$3:G$2012,الرصيد!F8,المبيعات!$K$3:$K$2012),\"\")","v":0}]
[null,null,null,null,{"$f":"الأصناف!F9","v":"A7"},{"$f":"IFERROR(VLOOKUP(E9,الأصناف!items,2,FALSE),\"\")","v":0},"",{"$f":"SUMIF(المبيعات!$G$3:$G$2012,الرصيد!F9,المبيعات!$H$3:$H$2012)","v":0},{"$f":"IFERROR(SUMIF(المبيعات!$G$3:G$2012,الرصيد!F9,المبيعات!$K$3:$K$2012),\"\")","v":0}]
[null,null,null,null,{"$f":"الأصناف!F10","v":"A8"},{"$f":"IFERROR(VLOOKUP(E10,الأصناف!items,2,FALSE),\"\")","v":0},"",{"$f":"SUMIF(المبيعات!$G$3:$G$2012,الرصيد!F10,المبيعات!$H$3:$H$2012)","v":0},{"$f":"IFERROR(SUMIF(المبيعات!$G$3:G$2012,الرصيد!F10,المبيعات!$K$3:$K$2012),\"\")","v":0}]
[null,null,null,null,{"$f":"الأصناف!F11","v":"A9"},{"$f":"IFERROR(VLOOKUP(E11,الأصناف!items,2,FALSE),\"\")","v":0},"",{"$f":"SUMIF(المبيعات!$G$3:$G$2012,الرصيد!F11,المبيعات!$H$3:$H$2012)","v":0},{"$f":"IFERROR(SUMIF(المبيعات!$G$3:G$2012,الرصيد!F11,المبيعات!$K$3:$K$2012),\"\")","v":0}]
[null,null,null,null,{"$f":"الأصناف!F12","v":"A10"},{"$f":"IFERROR(VLOOKUP(E12,الأصناف!items,2,FALSE),\"\")","v":0},"",{"$f":"SUMIF(المبيعات!$G$3:$G$2012,الرصيد!F12,المبيعات!$H$3:$H$2012)","v":0},{"$f":"IFERROR(SUMIF(المبيعات!$G$3:G$2012,الرصيد!F12,المبيعات!$K$3:$K$2012),\"\")","v":0}]
[null,null,null,null,{"$f":"الأصناف!F13","v":"A11"},{"$f":"IFERROR(VLOOKUP(E13,الأصناف!items,2,FALSE),\"\")","v":0},"",{"$f":"SUMIF(المبيعات!$G$3:$G$2012,الرصيد!F13,المبيعات!$H$3:$H$2012)","v":0},{"$f":"IFERROR(SUMIF(المبيعات!$G$3:G$2012,الرصيد!F13,المبيعات!$K$3:$K$2012),\"\")","v":0}]
[null,null,null,null,{"$f":"الأصناف!F14","v":"A12"},{"$f":"IFERROR(VLOOKUP(E14,الأصناف!items,2,FALSE),\"\")","v":0},"",{"$f":"SUMIF(المبيعات!$G$3:$G$2012,الرصيد!F14,المبيعات!$H$3:$H$2012)","v":0},{"$f":"IFERROR(SUMIF(المبيعات!$G$3:G$2012,الرصيد!F14,المبيعات!$K$3:$K$2012),\"\")","v":0}]
[null,null,null,null,{"$f":"الأصناف!F15","v":"A13"},{"$f":"IFERROR(VLOOKUP(E15,الأصناف!items,2,FALSE),\"\")","v":0},"",{"$f":"SUMIF(المبيعات!$G$3:$G$2012,الرصيد!F15,المبيعات!$H$3:$H$2012)","v":0},{"$f":"IFERROR(SUMIF(المبيعات!$G$3:G$2012,الرصيد!F15,المبيعات!$K$3:$K$2012),\"\")","v":0}]
[null,null,null,null,{"$f":"الأصناف!F16","v":"A14"},{"$f":"IFERROR(VLOOKUP(E16,الأصناف!items,2,FALSE),\"\")","v":0},"",{"$f":"SUMIF(المبيعات!$G$3:$G$2012,الرصيد!F16,المبيعات!$H$3:$H$2012)","v":0},{"$f":"IFERROR(SUMIF(المبيعات!$G$3:G$2012,الرصيد!F16,المبيعات!$K$3:$K$2012),\"\")","v":0}]
[null,null,null,null,{"$f":"الأصناف!F17","v":"A15"},{"$f":"IFERROR(VLOOKUP(E17,الأصناف!items,2,FALSE),\"\")","v":0},"",{"$f":"SUMIF(المبيعات!$G$3:$G$2012,الرصيد!F17,المبيعات!$H$3:$H$2012)","v":0},{"$f":"IFERROR(SUMIF(المبيعات!$G$3:G$2012,الرصيد!F17,المبيعات!$K$3:$K$2012),\"\")","v":0}]
[null,null,null,null,{"$f":"الأصناف!F18","v":"A16"},{"$f":"IFERROR(VLOOKUP(E18,الأصناف!items,2,FALSE),\"\")","v":0},"",{"$f":"SUMIF(المبيعات!$G$3:$G$2012,الرصيد!F18,المبيعات!$H$3:$H$2012)","v":0},{"$f":"IFERROR(SUMIF(المبيعات!$G$3:G$2012,الرصيد!F18,المبيعات!$K$3:$K$2012),\"\")","v":0}]
[null,null,null,null,{"$f":"الأصناف!F19","v":"A17"},{"$f":"IFERROR(VLOOKUP(E19,الأصناف!items,2,FALSE),\"\")","v":0},"",{"$f":"SUMIF(المبيعات!$G$3:$G$2012,الرصيد!F19,المبيعات!$H$3:$H$2012)","v":0},{"$f":"IFERROR(SUMIF(المبيعات!$G$3:G$2012,الرصيد!F19,المبيعات!$K$3:$K$2012),\"\")","v":0}]
[null,null,null,null,{"$f":"الأصناف!F20","v":"A18"},{"$f":"IFERROR(VLOOKUP(E20,الأصناف!items,2,FALSE),\"\")","v":0},"",{"$f":"SUMIF(المبيعات!$G$3:$G$2012,الرصيد!F20,المبيعات!$H$3:$H$2012)","v":0},{"$f":"IFERROR(SUMIF(المبيعات!$G$3:G$2012,الرصيد!F20,المبيعات!$K$3:$K$2012),\"\")","v":0}]
[null,null,null,null,{"$f":"الأصناف!F21","v":"A19"},{"$f":"IFERROR(VLOOKUP(E21,الأصناف!items,2,FALSE),\"\")","v":0},"",{"$f":"SUMIF(المبيعات!$G$3:$G$2012,الرصيد!F21,المبيعات!$H$3:$H$2012)","v":0},{"$f":"IFERROR(SUMIF(المبيعات!$G$3:G$2012,الرصيد!F21,المبيعات!$K$3:$K$2012),\"\")","v":0}]
[null,null,null,null,{"$f":"الأصناف!F22","v":"A20"},{"$f":"IFERROR(VLOOKUP(E22,الأصناف!items,2,FALSE),\"\")","v":0},"",{"$f":"SUMIF(المبيعات!$G$3:$G$2012,الرصيد!F22,المبيعات!$H$3:$H$2012)","v":0},{"$f":"IFERROR(SUMIF(المبيعات!$G$3:G$2012,الرصيد!F22,المبيعات!$K$3:$K$2012),\"\")","v":0}]
[null,null,null,null,{"$f":"الأصناف!F23","v":"A21"},{"$f":"IFERROR(VLOOKUP(E23,الأصناف!items,2,FALSE),\"\")","v":0},"",{"$f":"SUMIF(المبيعات!$G$3:$G$2012,الرصيد!F23,المبيعات!$H$3:$H$2012)","v":0},{"$f":"IFERROR(SUMIF(المبيعات!$G$3:G$2012,الرصيد!F23,المبيعات!$K$3:$K$2012),\"\")","v":0}]
[null,null,null,null,{"$f":"الأصناف!F24","v":"A22"},{"$f":"IFERROR(VLOOKUP(E24,الأصناف!items,2,FALSE),\"\")","v":0},"",{"$f":"SUMIF(المبيعات!$G$3:$G$2012,الرصيد!F24,المبيعات!$H$3:$H$2012)","v":0},{"$f":"IFERROR(SUMIF(المبيعات!$G$3:G$2012,الرصيد!F24,المبيعات!$K$3:$K$2012),\"\")","v":0}]
[null,null,null,null,{"$f":"الأصناف!F25","v":"A23"},{"$f":"IFERROR(VLOOKUP(E25,الأصناف!items,2,FALSE),\"\")","v":0},"",{"$f":"SUMIF(المبيعات!$G$3:$G$2012,الرصيد!F25,المبيعات!$H$3:$H$2012)","v":0},{"$f":"IFERROR(SUMIF(المبيعات!$G$3:G$2012,الرصيد!F25,المبيعات!$K$3:$K$2012),\"\")","v":0}]
[null,null,null,null,{"$f":"الأصناف!F26","v":"A24"},{"$f":"IFERROR(VLOOKUP(E26,الأصناف!items,2,FALSE),\"\")","v":0},"",{"$f":"SUMIF(المبيعات!$G$3:$G$2012,الرصيد!F26,المبيعات!$H$3:$H$2012)","v":0},{"$f":"IFERROR(SUMIF(المبيعات!$G$3:G$2012,الرصيد!F26,المبيعات!$K$3:$K$2012),\"\")","v":0}]
[null,null,null,null,{"$f":"الأصناف!F27","v":"A25"},{"$f":"IFERROR(VLOOKUP(E27,الأصناف!items,2,FALSE),\"\")","v":0},"",{"$f":"SUMIF(المبيعات!$G$3:$G$2012,الرصيد!F27,المبيعات!$H$3:$H$2012)","v":0},{"$f":"IFERROR(SUMIF(المبيعات!$G$3:G$2012,الرصيد!F27,المبيعات!$K$3:$K$2012),\"\")","v":0}]
[null,null,null,null,{"$f":"الأصناف!F28","v":"A26"},{"$f":"IFERROR(VLOOKUP(E28,الأصناف!items,2,FALSE),\"\")","v":0},"",{"$f":"SUMIF(المبيعات!$G$3:$G$2012,الرصيد!F28,المبيعات!$H$3:$H$2012)","v":0},{"$f":"IFERROR(SUMIF(المبيعات!$G$3:G$2012,الرصيد!F28,المبيعات!$K$3:$K$2012),\"\")","v":0}]
[null,null,null,null,{"$f":"الأصناف!F29","v":"A27"},{"$f":"IFERROR(VLOOKUP(E29,الأصناف!items,2,FALSE),\"\")","v":0},"",{"$f":"SUMIF(المبيعات!$G$3:$G$2012,الرصيد!F29,المبيعات!$H$3:$H$2012)","v":0},{"$f":"IFERROR(SUMIF(المبيعات!$G$3:G$2012,الرصيد!F29,المبيعات!$K$3:$K$2012),\"\")","v":0}]
[null,null,null,null,{"$f":"الأصناف!F30","v":"A28"},{"$f":"IFERROR(VLOOKUP(E30,الأصناف!items,2,FALSE),\"\")","v":0},"",{"$f":"SUMIF(المبيعات!$G$3:$G$2012,الرصيد!F30,المبيعات!$H$3:$H$2012)","v":0},{"$f":"IFERROR(SUMIF(المبيعات!$G$3:G$2012,الرصيد!F30,المبيعات!$K$3:$K$2012),\"\")","v":0}]
[null,null,null,null,{"$f":"الأصناف!F31","v":"A29"},{"$f":"IFERROR(VLOOKUP(E31,الأصناف!items,2,FALSE),\"\")","v":0},"",{"$f":"SUMIF(المبيعات!$G$3:$G$2012,الرصيد!F31,المبيعات!$H$3:$H$2012)","v":0},{"$f":"IFERROR(SUMIF(المبيعات!$G$3:G$2012,الرصيد!F31,المبيعات!$K$3:$K$2012),\"\")","v":0}]
[null,null,null,null,{"$f":"الأصناف!F32","v":"A30"},{"$f":"IFERROR(VLOOKUP(E32,الأصناف!items,2,FALSE),\"\")","v":0},"",{"$f":"SUMIF(المبيعات!$G$3:$G$2012,الرصيد!F32,المبيعات!$H$3:$H$2012)","v":0},{"$f":"IFERROR(SUMIF(المبيعات!$G$3:G$2012,الرصيد!F32,المبيعات!$K$3:$K$2012),\"\")","v":0}]

{"sheet":"ورقة1","index":1,"n_rows":17,"n_cols":8,"rows_kept":17,"cut":false,"hidden":false,"merged":[[16,4,16,6]]}
[]
[]
[]
[null,null,"التاريخ","2021-02-25"]
[]
[null,null,"الكود","الصنف","الكمية","السعر الافتراضي","الخصم","المجموع"]
[1,null,null,null,null,null,null,{"$f":"E7*F7","v":0}]
[2,null,null,null,null,null,null,{"$f":"E8*F8","v":0}]
[3,null,null,null,null,null,null,0]
[4,null,null,null,null,null,null,0]
[5,null,null,null,null,null,null,0]
[6,null,null,null,null,null,null,0]
[7,null,null,null,null,null,null,0]
[8,null,null,null,null,null,null,0]
[9,null,null,null,null,null,null,0]
[10,null,null,null,null,null,null,0]
[null,null,null,null,"الإجمالي",null,null,{"$f":"SUM(H7:H16)","v":0}]

{"sheet":"المبيعات","index":2,"n_rows":7,"n_cols":14,"rows_kept":7,"cut":false,"hidden":false,"merged":[[0,4,0,10],[2,13,3,15],[4,13,5,15]]}
[null,null,null,null,"المبيعات"]
[null,null,null,null,"التاريخ","الكود","الصنف","الكمية","السعر الافتراضي","الخصم","السعر الإجمالي"]
[null,null,null,null,"2021-02-24","A1","قهوة باردة",5,9,null,45,null,null,"إجمالي المبيعات"]
[null,null,null,null,"2021-02-24","A2","قهوة حارة",null,12,null,0]
[null,null,null,null,"2021-02-24",null,"قهوة باردة",2,9,null,18,null,null,{"$f":"SUM(K3:K2012)","v":63}]
[null,null,null,null,"2021-02-24",null,"قهوة باردة",null,9,null,0]
[null,null,null,null,"2021-02-25","A3","كيك",null,2,null,0]

{"sheet":"المشتريات","index":3,"n_rows":101,"n_cols":13,"rows_kept":101,"cut":false,"hidden":false,"merged":[[4,12,5,14],[2,12,3,14]]}
[null,null,null,null,null,"التاريخ","اسم المنتج","السعر","العدد","المجموع"]
[null,null,null,null,null,null,"ا",1000,1,{"$f":"H2*I2","v":1000}]
[null,null,null,null,null,null,null,null,null,{"$f":"H3*I3","v":0},null,null,"إجمالي المشتريات"]
[null,null,null,null,null,null,null,null,null,0]
[null,null,null,null,null,null,null,null,null,0,null,null,{"$f":"SUM(J2:J101)","v":1000}]
[null,null,null,null,null,null,null,null,null,0]
[null,null,null,null,null,null,null,null,null,0]
[null,null,null,null,null,null,null,null,null,0]
[null,null,null,null,null,null,null,null,null,0]
[null,null,null,null,null,null,null,null,null,0]
[null,null,null,null,null,null,null,null,null,0]
[null,null,null,null,null,null,null,null,null,0]
[null,null,null,null,null,null,null,null,null,0]
[null,null,null,null,null,null,null,null,null,0]
[null,null,null,null,null,null,null,null,null,0]
[null,null,null,null,null,null,null,null,null,0]
[null,null,null,null,null,null,null,null,null,0]
[null,null,null,null,null,null,null,null,null,0]
[null,null,null,null,null,null,null,null,null,0]
[null,null,null,null,null,null,null,null,null,0]
[null,null,null,null,null,null,null,null,null,0]
[null,null,null,null,null,null,null,null,null,0]
[null,null,null,null,null,null,null,null,null,0]
[null,null,null,null,null,null,null,null,null,0]
[null,null,null,null,null,null,null,null,null,0]
[null,null,null,null,null,null,null,null,null,0]
[null,null,null,null,null,null,null,null,null,0]
[null,null,null,null,null,null,null,null,null,0]
[null,null,null,null,null,null,null,null,null,0]
[null,null,null,null,null,null,null,null,null,0]
[null,null,null,null,null,null,null,null,null,0]
[null,null,null,null,null,null,null,null,null,0]
[null,null,null,null,null,null,null,null,null,{"$f":"H33*I33","v":0}]
[null,null,null,null,null,null,null,null,null,0]
[null,null,null,null,null,null,null,null,null,0]
[null,null,null,null,null,null,null,null,null,0]
[null,null,null,null,null,null,null,null,null,0]
[null,null,null,null,null,null,null,null,null,0]
[null,null,null,null,null,null,null,null,null,0]
[null,null,null,null,null,null,null,null,null,0]
[null,null,null,null,null,null,null,null,null,0]
[null,null,null,null,null,null,null,null,null,0]
[null,null,null,null,null,null,null,null,null,0]
[null,null,null,null,null,null,null,null,null,0]
[null,null,null,null,null,null,null,null,null,0]
[null,null,null,null,null,null,null,null,null,0]
[null,null,null,null,null,null,null,null,null,0]
[null,null,null,null,null,null,null,null,null,0]
[null,null,null,null,null,null,null,null,null,0]
[null,null,null,null,null,null,null,null,null,0]
[null,null,null,null,null,null,null,null,null,0]
[null,null,null,null,null,null,null,null,null,0]
[null,null,null,null,null,null,null,null,null,0]
[null,null,null,null,null,null,null,null,null,0]
[null,null,null,null,null,null,null,null,null,0]
[null,null,null,null,null,null,null,null,null,0]
[null,null,null,null,null,null,null,null,null,0]
[null,null,null,null,null,null,null,null,null,0]
[null,null,null,null,null,null,null,null,null,0]
[null,null,null,null,null,null,null,null,null,0]
[null,null,null,null,null,null,null,null,null,0]
[null,null,null,null,null,null,null,null,null,0]
[null,null,null,null,null,null,null,null,null,0]
[null,null,null,null,null,null,null,null,null,0]
[null,null,null,null,null,null,null,null,null,0]
[null,null,null,null,null,null,null,null,null,0]
[null,null,null,null,null,null,null,null,null,0]
[null,null,null,null,null,null,null,null,null,0]
[null,null,null,null,null,null,null,null,null,0]
[null,null,null,null,null,null,null,null,null,0]
[null,null,null,null,null,null,null,null,null,0]
[null,null,null,null,null,null,null,null,null,0]
[null,null,null,null,null,null,null,null,null,0]
[null,null,null,null,null,null,null,null,null,0]
[null,null,null,null,null,null,null,null,null,0]
[null,null,null,null,null,null,null,null,null,0]
[null,null,null,null,null,null,null,null,null,0]
[null,null,null,null,null,null,null,null,null,0]
[null,null,null,null,null,null,null,null,null,0]
[null,null,null,null,null,null,null,null,null,0]
[null,null,null,null,null,null,null,null,null,0]
[null,null,null,null,null,null,null,null,null,0]
[null,null,null,null,null,null,null,null,null,0]
[null,null,null,null,null,null,null,null,null,0]
[null,null,null,null,null,null,null,null,null,0]
[null,null,null,null,null,null,null,null,null,0]
[null,null,null,null,null,null,null,null,null,0]
[null,null,null,null,null,null,null,null,null,0]
[null,null,null,null,null,null,null,null,null,0]
[null,null,null,null,null,null,null,null,null,0]
[null,null,null,null,null,null,null,null,null,0]
[null,null,null,null,null,null,null,null,null,0]
[null,null,null,null,null,null,null,null,null,0]
[null,null,null,null,null,null,null,null,null,0]
[null,null,null,null,null,null,null,null,null,0]
[null,null,null,null,null,null,null,null,null,0]
[null,null,null,null,null,null,null,null,null,{"$f":"H97*I97","v":0}]
[null,null,null,null,null,null,null,null,null,0]
[null,null,null,null,null,null,null,null,null,0]
[null,null,null,null,null,null,null,null,null,0]
[null,null,null,null,null,null,null,null,null,0]

{"sheet":"الأصناف","index":4,"n_rows":32,"n_cols":9,"rows_kept":32,"cut":false,"hidden":false,"merged":[[0,5,0,8]]}
[null,null,null,null,null,"الأصناف"]
[null,null,null,null,null,"الكود","الصنف","السعر","الملاحظات"]
[null,null,null,null,null,"A1","قهوة باردة",9]
[null,null,null,null,null,"A2","قهوة حارة",12]
[null,null,null,null,null,"A3","كيك",2]
[null,null,null,null,null,"A4","بسكوت",3]
[null,null,null,null,null,"A5"]
[null,null,null,null,null,"A6"]
[null,null,null,null,null,"A7"]
[null,null,null,null,null,"A8"]
[null,null,null,null,null,"A9"]
[null,null,null,null,null,"A10"]
[null,null,null,null,null,"A11"]
[null,null,null,null,null,"A12"]
[null,null,null,null,null,"A13"]
[null,null,null,null,null,"A14"]
[null,null,null,null,null,"A15"]
[null,null,null,null,null,"A16"]
[null,null,null,null,null,"A17"]
[null,null,null,null,null,"A18"]
[null,null,null,null,null,"A19"]
[null,null,null,null,null,"A20"]
[null,null,null,null,null,"A21"]
[null,null,null,null,null,"A22"]
[null,null,null,null,null,"A23"]
[null,null,null,null,null,"A24"]
[null,null,null,null,null,"A25"]
[null,null,null,null,null,"A26"]
[null,null,null,null,null,"A27"]
[null,null,null,null,null,"A28"]
[null,null,null,null,null,"A29"]
[null,null,null,null,null,"A30"]